[Event "2026 Biel Blitz Open"]
[Site "Biel, CH"]
[Date "2026.07.19"]
[Round "1"]
[White "Aryan Goyal"]
[Black "Gireada, Daniel"]
[Result "1-0"]
[Board "32"]
[TimeControl "180+2"]
[WhiteFideId "366108825"]
[BlackFideId "1206451"]
[WhiteElo "1748"]
[BlackElo "2148"]
[WhiteClock "0:00:19"]
[BlackClock "0:00:42"]
[Variant "Standard"]
[EndDate "2026.07.19"]
[EndTime "11:47:32"]

1. e4 {[%clk 0:03:03]}  c6 {[%clk 0:03:03]} 2. d4 {[%clk 0:03:03]}  d5 {[%clk 0:03:03]} 3. f3 {[%clk 0:03:05]}  dxe4 {[%clk 0:02:58]}
4. fxe4 {[%clk 0:03:05]}  e5 {[%clk 0:02:58]} 5. Nf3 {[%clk 0:03:04]}  exd4 {[%clk 0:02:44]} 6. Bc4 {[%clk 0:03:06]}  Nf6 {[%clk 0:02:44]}
7. O-O {[%clk 0:02:57]}  Nbd7 {[%clk 0:02:26]} 8. Qe2 {[%clk 0:02:05]}  Bc5 {[%clk 0:02:20]} 9. Kh1 {[%clk 0:01:52]}  O-O {[%clk 0:02:18]}
10. e5 {[%clk 0:01:53]}  Nd5 {[%clk 0:02:13]} 11. e6 {[%clk 0:01:49]}  N7f6 {[%clk 0:02:07]} 12. exf7+ {[%clk 0:01:46]}  Rxf7 {[%clk 0:02:02]}
13. Ne5 {[%clk 0:01:29]}  Rf8 {[%clk 0:01:59]} 14. Bg5 {[%clk 0:01:26]}  b5 {[%clk 0:01:32]} 15. Nxc6 {[%clk 0:01:01]}  Qd6 {[%clk 0:01:32]}
16. Ne7+ {[%clk 0:00:46]}  Qxe7 {[%clk 0:01:33]} 17. Bxd5+ {[%clk 0:00:42]}  Be6 {[%clk 0:01:26]} 18. Qxe6+ {[%clk 0:00:33]}  Qxe6 {[%clk 0:01:26]}
19. Bxe6+ {[%clk 0:00:35]}  Kh8 {[%clk 0:01:27]} 20. Bxf6 {[%clk 0:00:31]}  gxf6 {[%clk 0:01:27]} 21. Nd2 {[%clk 0:00:30]}  Rae8 {[%clk 0:01:28]}
22. Bg4 {[%clk 0:00:28]}  Re3 {[%clk 0:01:26]} 23. Nb3 {[%clk 0:00:27]}  Bb6 {[%clk 0:01:26]} 24. Rae1 {[%clk 0:00:27]}  Rfe8 {[%clk 0:01:25]}
25. Rxe3 {[%clk 0:00:27]}  dxe3 {[%clk 0:01:26]} 26. Re1 {[%clk 0:00:23]}  Kg7 {[%clk 0:01:27]} 27. g3 {[%clk 0:00:22]}  Kg6 {[%clk 0:01:26]}
28. Kg2 {[%clk 0:00:22]}  f5 {[%clk 0:01:27]} 29. Bf3 {[%clk 0:00:22]}  Kg5 {[%clk 0:01:27]} 30. Nc1 {[%clk 0:00:16]}  Rd8 {[%clk 0:01:26]}
31. Nd3 {[%clk 0:00:17]}  Rc8 {[%clk 0:01:26]} 32. Re2 {[%clk 0:00:18]}  a5 {[%clk 0:01:26]} 33. Kf1 {[%clk 0:00:14]}  b4 {[%clk 0:01:22]}
34. Bd5 {[%clk 0:00:07]}  Rd8 {[%clk 0:01:19]} 35. Bb3 {[%clk 0:00:07]}  h5 {[%clk 0:01:14]} 36. Re1 {[%clk 0:00:07]}  Re8 {[%clk 0:01:13]}
37. Ke2 {[%clk 0:00:07]}  Re7 {[%clk 0:01:10]} 38. Rf1 {[%clk 0:00:06]}  Re8 {[%clk 0:01:02]} 39. Nf4 {[%clk 0:00:07]}  h4 {[%clk 0:00:59]}
40. Nd5 {[%clk 0:00:07]}  Bc5 {[%clk 0:00:57]} 41. Rf3 {[%clk 0:00:06]}  hxg3 {[%clk 0:00:56]} 42. Rxg3+ {[%clk 0:00:07]}  Kh6 {[%clk 0:00:55]}
43. Rf3 {[%clk 0:00:08]}  Rd8 {[%clk 0:00:53]} 44. Rxf5 {[%clk 0:00:07]}  Kg6 {[%clk 0:00:52]} 45. Re5 {[%clk 0:00:07]}  Bd4 {[%clk 0:00:52]}
46. Re4 {[%clk 0:00:07]}  Bxb2 {[%clk 0:00:52]} 47. Rxe3 {[%clk 0:00:07]}  Rh8 {[%clk 0:00:50]} 48. Ne7+ {[%clk 0:00:07]}  Kf6 {[%clk 0:00:49]}
49. Nd5+ {[%clk 0:00:08]}  Kg6 {[%clk 0:00:48]} 50. h3 {[%clk 0:00:09]}  Bd4 {[%clk 0:00:49]} 51. Rg3+ {[%clk 0:00:08]}  Kf5 {[%clk 0:00:48]}
52. Rf3+ {[%clk 0:00:09]}  Ke4 {[%clk 0:00:46]} 53. Nf6+ {[%clk 0:00:08]}  Ke5 {[%clk 0:00:45]} 54. Ng4+ {[%clk 0:00:08]}  Ke4 {[%clk 0:00:45]}
55. Be6 {[%clk 0:00:08]}  Re8 {[%clk 0:00:40]} 56. Bf5+ {[%clk 0:00:08]}  Kd5+ {[%clk 0:00:40]} 57. Kd3 {[%clk 0:00:09]}  Bb6 {[%clk 0:00:40]}
58. Nf6+ {[%clk 0:00:10]}  Kd6 {[%clk 0:00:39]} 59. Nxe8+ {[%clk 0:00:11]}  Ke7 {[%clk 0:00:38]} 60. Ng7 {[%clk 0:00:11]}  Kf6 {[%clk 0:00:39]}
61. Nh5+ {[%clk 0:00:13]}  Kg5 {[%clk 0:00:40]} 62. Ng3 {[%clk 0:00:14]}  Bc7 {[%clk 0:00:41]} 63. Ne4+ {[%clk 0:00:15]}  Kh6 {[%clk 0:00:42]}
64. Bd7 {[%clk 0:00:16]}  Kh7 {[%clk 0:00:41]} 65. Nf6+ {[%clk 0:00:17]}  Kg6 {[%clk 0:00:42]} 66. Nd5 {[%clk 0:00:18]}  Bd6 {[%clk 0:00:42]}
67. Rf6+ {[%clk 0:00:19]} 1-0

[Event "2026 Biel Blitz Open"]
[Site "Biel, CH"]
[Date "2026.07.19"]
[Round "1"]
[White "Matsumura, Cocoro"]
[Black "Bujes, Aurelien"]
[Result "1-0"]
[Board "33"]
[TimeControl "180+2"]
[WhiteFideId "36087114"]
[BlackFideId "1347179"]
[WhiteElo "2131"]
[BlackElo "1741"]
[WhiteTitle "CM"]
[WhiteClock "0:00:49"]
[BlackClock "0:00:11"]
[Variant "Standard"]
[EndDate "2026.07.19"]
[EndTime "11:47:32"]

1. e4 {[%clk 0:03:03]}  g6 {[%clk 0:03:00]} 2. d4 {[%clk 0:03:05]}  Bg7 {[%clk 0:03:00]} 3. Nc3 {[%clk 0:03:07]}  d6 {[%clk 0:03:01]}
4. Be3 {[%clk 0:03:08]}  Nf6 {[%clk 0:03:00]} 5. Qd2 {[%clk 0:03:10]}  Nbd7 {[%clk 0:02:58]} 6. h4 {[%clk 0:03:10]}  c5 {[%clk 0:02:59]}
7. f3 {[%clk 0:03:06]}  cxd4 {[%clk 0:02:58]} 8. Bxd4 {[%clk 0:03:08]}  Nh5 {[%clk 0:02:49]} 9. Bxg7 {[%clk 0:03:04]}  Nxg7 {[%clk 0:02:50]}
10. Qh6 {[%clk 0:03:00]}  Ne6 {[%clk 0:02:45]} 11. O-O-O {[%clk 0:03:00]}  Ndc5 {[%clk 0:02:43]} 12. h5 {[%clk 0:03:00]}  Bd7 {[%clk 0:02:31]}
13. hxg6 {[%clk 0:03:00]}  fxg6 {[%clk 0:02:31]} 14. e5 {[%clk 0:02:39]}  Qb6 {[%clk 0:01:51]} 15. exd6 {[%clk 0:02:39]}  exd6 {[%clk 0:01:51]}
16. Bc4 {[%clk 0:02:31]}  O-O-O {[%clk 0:01:46]} 17. Nge2 {[%clk 0:02:17]}  Qb4 {[%clk 0:01:34]} 18. Bd5 {[%clk 0:01:48]}  Nc7 {[%clk 0:01:28]}
19. Rh4 {[%clk 0:01:45]}  Qa5 {[%clk 0:01:19]} 20. Kb1 {[%clk 0:01:31]}  Bf5 {[%clk 0:01:17]} 21. Qd2 {[%clk 0:01:18]}  h5 {[%clk 0:01:01]}
22. b4 {[%clk 0:01:07]}  Qb6 {[%clk 0:00:34]} 23. Ka1 {[%clk 0:01:08]}  N5a6 {[%clk 0:00:30]} 24. Na4 {[%clk 0:01:07]}  Qb5 {[%clk 0:00:25]}
25. Nec3 {[%clk 0:01:07]}  Qd7 {[%clk 0:00:19]} 26. Bb3 {[%clk 0:01:03]}  Qe7 {[%clk 0:00:18]} 27. Rd4 {[%clk 0:01:02]}  Rhe8 {[%clk 0:00:14]}
28. a3 {[%clk 0:01:00]}  b6 {[%clk 0:00:09]} 29. Rxd6 {[%clk 0:00:59]}  Rxd6 {[%clk 0:00:09]} 30. Qxd6 {[%clk 0:01:01]}  Qxd6 {[%clk 0:00:09]}
31. Rxd6 {[%clk 0:01:02]}  Re1+ {[%clk 0:00:09]} 32. Kb2 {[%clk 0:01:03]}  Ne6 {[%clk 0:00:07]} 33. b5 {[%clk 0:00:59]}  Nac7 {[%clk 0:00:08]}
34. Nd5 {[%clk 0:00:56]}  Nxb5 {[%clk 0:00:06]} 35. Ne7+ {[%clk 0:00:55]}  Kc7 {[%clk 0:00:07]} 36. Rd5 {[%clk 0:00:46]}  Ned4 {[%clk 0:00:05]}
37. Nxf5 {[%clk 0:00:45]}  Nxf5 {[%clk 0:00:06]} 38. Rxb5 {[%clk 0:00:46]}  Nd4 {[%clk 0:00:07]} 39. Rg5 {[%clk 0:00:44]}  Re2 {[%clk 0:00:07]}
40. Rxg6 {[%clk 0:00:44]}  Nxb3 {[%clk 0:00:08]} 41. Kxb3 {[%clk 0:00:45]}  Rf2 {[%clk 0:00:08]} 42. Rg5 {[%clk 0:00:46]}  h4 {[%clk 0:00:10]}
43. Nc3 {[%clk 0:00:47]}  a6 {[%clk 0:00:11]} 44. Ne4 {[%clk 0:00:48]}  Re2 {[%clk 0:00:11]} 45. Rg4 {[%clk 0:00:49]} 1-0

[Event "2026 Biel Blitz Open"]
[Site "Biel, CH"]
[Date "2026.07.19"]
[Round "1"]
[White "Filimonov, Arsenii"]
[Black "Hakimifard, Ghazal"]
[Result "0-1"]
[Board "34"]
[TimeControl "180+2"]
[WhiteFideId "34171584"]
[BlackFideId "12506540"]
[WhiteElo "1735"]
[BlackElo "2130"]
[BlackTitle "WGM"]
[WhiteClock "0:03:02"]
[BlackClock "0:00:12"]
[Variant "Standard"]
[EndDate "2026.07.19"]
[EndTime "11:47:32"]

1. e4 {[%clk 0:03:03]}  c5 {[%clk 0:03:03]} 2. Nf3 {[%clk 0:03:04]}  e6 {[%clk 0:03:04]} 3. d4 {[%clk 0:03:05]}  cxd4 {[%clk 0:03:04]}
4. Nxd4 {[%clk 0:03:06]}  a6 {[%clk 0:03:06]} 5. Nc3 {[%clk 0:03:06]}  Qc7 {[%clk 0:03:07]} 6. Qf3 {[%clk 0:03:06]}  Nc6 {[%clk 0:02:51]}
7. Be3 {[%clk 0:02:58]}  Nf6 {[%clk 0:02:47]} 8. O-O-O {[%clk 0:02:45]}  Bb4 {[%clk 0:02:32]} 9. Nxc6 {[%clk 0:01:55]}  bxc6 {[%clk 0:02:33]}
10. Bf4 {[%clk 0:01:37]}  e5 {[%clk 0:01:41]} 11. Bg3 {[%clk 0:01:07]}  O-O {[%clk 0:01:30]} 12. Bc4 {[%clk 0:00:44]}  Qa5 {[%clk 0:01:31]}
13. Rhe1 {[%clk 0:00:34]}  d5 {[%clk 0:00:50]} 14. exd5 {[%clk 0:00:33]}  Bg4 {[%clk 0:00:52]} 15. Qd3 {[%clk 0:00:28]}  Bxd1 {[%clk 0:00:39]}
16. Rxd1 {[%clk 0:00:28]}  Bxc3 {[%clk 0:00:25]} 17. Qxc3 {[%clk 0:00:27]}  Qxc3 {[%clk 0:00:23]} 18. bxc3 {[%clk 0:00:28]}  cxd5 {[%clk 0:00:23]}
19. Bxd5 {[%clk 0:00:26]}  Nxd5 {[%clk 0:00:23]} 20. Rxd5 {[%clk 0:00:27]}  f6 {[%clk 0:00:24]} 21. f3 {[%clk 0:00:22]}  Rfd8 {[%clk 0:00:25]}
22. Ra5 {[%clk 0:00:20]}  Rd6 {[%clk 0:00:20]} 23. c4 {[%clk 0:00:11]}  Rad8 {[%clk 0:00:15]} 24. Kb2 {[%clk 0:00:08]}  Rd4 {[%clk 0:00:13]}
25. Rxa6 {[%clk 0:00:06]}  Rxc4 {[%clk 0:00:09]} 26. Ra3 {[%clk 0:00:04]}  Rdc8 {[%clk 0:00:15]} 27. c3 {[%clk 0:00:04]}  Rd8 {[%clk 0:00:16]}
28. Kc2 {[%clk 0:00:05]}  Kf7 {[%clk 0:00:16]} 29. Bf2 {[%clk 0:00:06]}  Kg6 {[%clk 0:00:12]} 30. g4 {[%clk 0:00:05]}  Rf4 {[%clk 0:00:13]}
31. Bb6 {[%clk 0:00:04]}  Rb8 {[%clk 0:00:14]} 32. Bc5 {[%clk 0:00:03]}  Rc8 {[%clk 0:00:14]} 33. Bb6 {[%clk 0:00:00]}  Rxf3 {[%clk 0:00:12]} 0-1

[Event "2026 Biel Blitz Open"]
[Site "Biel, CH"]
[Date "2026.07.19"]
[Round "1"]
[White "Erne, Raphael"]
[Black "Vedant Nayudu"]
[Result "1-0"]
[Board "35"]
[TimeControl "180+2"]
[WhiteFideId "1341928"]
[BlackFideId "33369780"]
[WhiteElo "2128"]
[BlackElo "1732"]
[WhiteClock "0:00:11"]
[BlackClock "0:00:08"]
[Variant "Standard"]
[EndDate "2026.07.19"]
[EndTime "11:47:32"]

1. c4 {[%clk 0:03:02]}  e6 {[%clk 0:03:04]} 2. g3 {[%clk 0:03:03]}  d5 {[%clk 0:03:05]} 3. Bg2 {[%clk 0:03:04]}  Nf6 {[%clk 0:03:05]}
4. Nf3 {[%clk 0:03:05]}  dxc4 {[%clk 0:03:06]} 5. Qa4+ {[%clk 0:03:06]}  Nbd7 {[%clk 0:03:08]} 6. Qxc4 {[%clk 0:03:07]}  a6 {[%clk 0:03:09]}
7. Qb3 {[%clk 0:03:08]}  Rb8 {[%clk 0:03:09]} 8. O-O {[%clk 0:02:59]}  b5 {[%clk 0:03:10]} 9. d4 {[%clk 0:02:49]}  Bb7 {[%clk 0:03:11]}
10. Bf4 {[%clk 0:02:50]}  Nh5 {[%clk 0:03:02]} 11. Bd2 {[%clk 0:02:42]}  Be7 {[%clk 0:02:51]} 12. Bb4 {[%clk 0:02:33]}  O-O {[%clk 0:02:46]}
13. Rd1 {[%clk 0:02:32]}  Nhf6 {[%clk 0:02:21]} 14. Nc3 {[%clk 0:02:19]}  Ne4 {[%clk 0:02:17]} 15. Nxe4 {[%clk 0:02:11]}  Bxe4 {[%clk 0:02:17]}
16. Rac1 {[%clk 0:02:12]}  Bxb4 {[%clk 0:01:37]} 17. Qxb4 {[%clk 0:02:12]}  Bd5 {[%clk 0:01:37]} 18. Ne5 {[%clk 0:01:58]}  Nxe5 {[%clk 0:01:12]}
19. dxe5 {[%clk 0:01:58]}  Qg5 {[%clk 0:00:45]} 20. Bxd5 {[%clk 0:01:14]}  exd5 {[%clk 0:00:46]} 21. Qf4 {[%clk 0:01:15]}  Qd8 {[%clk 0:00:26]}
22. Qd4 {[%clk 0:00:59]}  Qe7 {[%clk 0:00:26]} 23. Qxd5 {[%clk 0:00:45]}  Rfd8 {[%clk 0:00:26]} 24. Qe4 {[%clk 0:00:43]}  h6 {[%clk 0:00:14]}
25. h4 {[%clk 0:00:39]}  b4 {[%clk 0:00:10]} 26. Qe3 {[%clk 0:00:34]}  Rxd1+ {[%clk 0:00:09]} 27. Rxd1 {[%clk 0:00:35]}  c5 {[%clk 0:00:10]}
28. Rc1 {[%clk 0:00:30]}  Rc8 {[%clk 0:00:11]} 29. b3 {[%clk 0:00:31]}  Rc6 {[%clk 0:00:09]} 30. Qe4 {[%clk 0:00:26]}  Qe6 {[%clk 0:00:07]}
31. Qc4 {[%clk 0:00:23]}  Qxc4 {[%clk 0:00:11]} 32. Rxc4 {[%clk 0:00:24]}  Kf8 {[%clk 0:00:13]} 33. Kg2 {[%clk 0:00:25]}  Ke7 {[%clk 0:00:14]}
34. Kf3 {[%clk 0:00:26]}  Ke6 {[%clk 0:00:16]} 35. Ke4 {[%clk 0:00:28]}  a5 {[%clk 0:00:12]} 36. f4 {[%clk 0:00:27]}  Rc8 {[%clk 0:00:12]}
37. f5+ {[%clk 0:00:27]}  Ke7 {[%clk 0:00:09]} 38. Kd5 {[%clk 0:00:25]}  Rd8+ {[%clk 0:00:08]} 39. Kxc5 {[%clk 0:00:25]}  Rd2 {[%clk 0:00:09]}
40. Kb5 {[%clk 0:00:17]}  Rxa2 {[%clk 0:00:09]} 41. Rc7+ {[%clk 0:00:18]}  Ke8 {[%clk 0:00:09]} 42. e4 {[%clk 0:00:13]}  a4 {[%clk 0:00:08]}
43. Kxb4 {[%clk 0:00:10]}  axb3 {[%clk 0:00:05]} 44. Kxb3 {[%clk 0:00:11]}  Rg2 {[%clk 0:00:06]} 45. Kc4 {[%clk 0:00:09]}  Rxg3 {[%clk 0:00:04]}
46. Kd5 {[%clk 0:00:10]}  Rd3+ {[%clk 0:00:06]} 47. Kc5 {[%clk 0:00:10]}  Re3 {[%clk 0:00:07]} 48. Kd4 {[%clk 0:00:10]}  Rh3 {[%clk 0:00:08]}
49. Rc8+ {[%clk 0:00:10]}  Ke7 {[%clk 0:00:07]} 50. Rg8 {[%clk 0:00:09]}  Rxh4 {[%clk 0:00:05]} 51. Rxg7 {[%clk 0:00:11]}  Kf8 {[%clk 0:00:06]}
52. Rg1 {[%clk 0:00:10]}  Rh2 {[%clk 0:00:05]} 53. Kd5 {[%clk 0:00:05]}  Rd2+ {[%clk 0:00:05]} 54. Kc6 {[%clk 0:00:06]}  Ke7 {[%clk 0:00:06]}
55. Rh1 {[%clk 0:00:05]}  Re2 {[%clk 0:00:07]} 56. Kd5 {[%clk 0:00:07]}  Rd2+ {[%clk 0:00:09]} 57. Kc4 {[%clk 0:00:08]}  Rc2+ {[%clk 0:00:06]}
58. Kd3 {[%clk 0:00:09]}  Rc5 {[%clk 0:00:05]} 59. Kd4 {[%clk 0:00:10]}  Rc6 {[%clk 0:00:04]} 60. f6+ {[%clk 0:00:05]}  Ke6 {[%clk 0:00:05]}
61. Rxh6 {[%clk 0:00:05]}  Ra6 {[%clk 0:00:06]} 62. Rh7 {[%clk 0:00:04]}  Ra4+ {[%clk 0:00:07]} 63. Ke3 {[%clk 0:00:05]}  Ra3+ {[%clk 0:00:08]}
64. Kf4 {[%clk 0:00:06]}  Ra5 {[%clk 0:00:09]} 65. Rh8 {[%clk 0:00:07]}  Ra1 {[%clk 0:00:04]} 66. Re8+ {[%clk 0:00:08]}  Kd7 {[%clk 0:00:06]}
67. Re7+ {[%clk 0:00:09]}  Kd8 {[%clk 0:00:06]} 68. Rxf7 {[%clk 0:00:10]}  Rf1+ {[%clk 0:00:07]} 69. Kg5 {[%clk 0:00:10]}  Ke8 {[%clk 0:00:08]}
70. Rb7 {[%clk 0:00:11]} 1-0

[Event "2026 Biel Blitz Open"]
[Site "Biel, CH"]
[Date "2026.07.19"]
[Round "1"]
[White "Knuesel, Jolan"]
[Black "Ashwath Kaushik"]
[Result "0-1"]
[Board "36"]
[TimeControl "180+2"]
[WhiteFideId "1364529"]
[BlackFideId "33387230"]
[WhiteElo "1728"]
[BlackElo "2122"]
[BlackTitle "FM"]
[WhiteClock "0:03:02"]
[BlackClock "0:02:43"]
[Variant "Standard"]
[EndDate "2026.07.19"]
[EndTime "11:47:32"]

1. d4 {[%clk 0:03:02]}  d5 {[%clk 0:03:04]} 2. Bf4 {[%clk 0:03:03]}  c5 {[%clk 0:03:05]} 3. e3 {[%clk 0:03:03]}  Nc6 {[%clk 0:03:06]}
4. Nf3 {[%clk 0:03:01]}  cxd4 {[%clk 0:03:07]} 5. exd4 {[%clk 0:03:01]}  Bf5 {[%clk 0:03:09]} 6. Bd3 {[%clk 0:02:56]}  Bxd3 {[%clk 0:03:09]}
7. Qxd3 {[%clk 0:02:56]}  Rc8 {[%clk 0:03:10]} 8. c3 {[%clk 0:02:53]}  e6 {[%clk 0:03:11]} 9. O-O {[%clk 0:02:52]}  Bd6 {[%clk 0:03:12]}
10. Bxd6 {[%clk 0:02:24]}  Qxd6 {[%clk 0:03:12]} 11. Re1 {[%clk 0:02:22]}  Nf6 {[%clk 0:03:12]} 12. Ne5 {[%clk 0:02:21]}  O-O {[%clk 0:03:11]}
13. Nd2 {[%clk 0:02:19]}  Nd7 {[%clk 0:03:09]} 14. Ndf3 {[%clk 0:02:15]}  Ndxe5 {[%clk 0:03:09]} 15. Nxe5 {[%clk 0:02:14]}  Ne7 {[%clk 0:03:09]}
16. Qb5 {[%clk 0:01:40]}  b6 {[%clk 0:03:07]} 17. a4 {[%clk 0:01:23]}  a5 {[%clk 0:02:47]} 18. Nd7 {[%clk 0:00:55]}  Rfd8 {[%clk 0:02:48]}
19. Nxb6 {[%clk 0:00:54]}  Rb8 {[%clk 0:02:49]} 20. Qxa5 {[%clk 0:00:33]}  Qxb6 {[%clk 0:02:50]} 21. Qxb6 {[%clk 0:00:30]}  Rxb6 {[%clk 0:02:51]}
22. b4 {[%clk 0:00:30]}  Rc8 {[%clk 0:02:51]} 23. Rec1 {[%clk 0:00:31]}  Rbc6 {[%clk 0:02:51]} 24. Ra3 {[%clk 0:00:31]}  Rc4 {[%clk 0:02:52]}
25. h3 {[%clk 0:00:22]}  Nc6 {[%clk 0:02:53]} 26. b5 {[%clk 0:00:22]}  Nxd4 {[%clk 0:02:53]} 27. Kf1 {[%clk 0:00:19]}  Ra8 {[%clk 0:02:50]}
28. Rca1 {[%clk 0:00:03]}  Nc2 {[%clk 0:02:48]} 29. a5 {[%clk 0:00:04]}  Nxa1 {[%clk 0:02:47]} 30. Rxa1 {[%clk 0:00:05]}  Rxc3 {[%clk 0:02:48]}
31. b6 {[%clk 0:00:06]}  Rb3 {[%clk 0:02:43]} 32. Rc1 {[%clk 0:00:00]} 0-1

[Event "2026 Biel Blitz Open"]
[Site "Biel, CH"]
[Date "2026.07.19"]
[Round "1"]
[White "Habibi, Ali"]
[Black "Paholok, Igor"]
[Result "1-0"]
[Board "37"]
[TimeControl "180+2"]
[WhiteFideId "4604393"]
[BlackFideId "1338951"]
[WhiteElo "2116"]
[BlackElo "1728"]
[WhiteTitle "IM"]
[WhiteClock "0:01:38"]
[BlackClock "0:00:26"]
[Variant "Standard"]
[EndDate "2026.07.19"]
[EndTime "11:47:32"]

1. Nf3 {[%clk 0:03:02]}  d5 {[%clk 0:02:58]} 2. g3 {[%clk 0:03:02]}  e6 {[%clk 0:02:58]} 3. Bg2 {[%clk 0:03:03]}  f5 {[%clk 0:02:58]}
4. O-O {[%clk 0:03:02]}  Nf6 {[%clk 0:02:59]} 5. d3 {[%clk 0:03:03]}  Bd6 {[%clk 0:02:45]} 6. Nc3 {[%clk 0:03:02]}  Bb4 {[%clk 0:02:31]}
7. Bd2 {[%clk 0:02:49]}  O-O {[%clk 0:02:28]} 8. a3 {[%clk 0:02:57]}  Bxc3 {[%clk 0:02:23]} 9. Bxc3 {[%clk 0:02:56]}  c5 {[%clk 0:02:00]}
10. e3 {[%clk 0:02:51]}  Nc6 {[%clk 0:02:00]} 11. b3 {[%clk 0:02:50]}  b6 {[%clk 0:01:58]} 12. Bb2 {[%clk 0:02:51]}  Bb7 {[%clk 0:01:57]}
13. Qe2 {[%clk 0:02:45]}  Rb8 {[%clk 0:01:58]} 14. Rad1 {[%clk 0:02:43]}  Qc7 {[%clk 0:01:59]} 15. Ng5 {[%clk 0:02:38]}  Bc8 {[%clk 0:01:47]}
16. f4 {[%clk 0:02:37]}  h6 {[%clk 0:01:41]} 17. Nf3 {[%clk 0:02:37]}  Bb7 {[%clk 0:01:35]} 18. Ne5 {[%clk 0:02:27]}  Nxe5 {[%clk 0:01:34]}
19. Bxe5 {[%clk 0:02:27]}  Qe7 {[%clk 0:01:26]} 20. Bxb8 {[%clk 0:02:27]}  Rxb8 {[%clk 0:01:27]} 21. c4 {[%clk 0:02:14]}  Ng4 {[%clk 0:01:02]}
22. h3 {[%clk 0:02:11]}  Nf6 {[%clk 0:01:02]} 23. Rfe1 {[%clk 0:02:07]}  Qd6 {[%clk 0:00:56]} 24. Qb2 {[%clk 0:02:05]}  Nh5 {[%clk 0:00:49]}
25. Kh2 {[%clk 0:02:04]}  g5 {[%clk 0:00:46]} 26. Qe5 {[%clk 0:02:03]}  Qxe5 {[%clk 0:00:44]} 27. fxe5 {[%clk 0:02:03]}  Ng7 {[%clk 0:00:34]}
28. e4 {[%clk 0:01:56]}  d4 {[%clk 0:00:31]} 29. Rd2 {[%clk 0:01:40]}  Rf8 {[%clk 0:00:32]} 30. Rf2 {[%clk 0:01:40]}  Kh7 {[%clk 0:00:25]}
31. Ref1 {[%clk 0:01:39]}  Kg6 {[%clk 0:00:26]} 32. exf5+ {[%clk 0:01:38]} 1-0

[Event "2026 Biel Blitz Open"]
[Site "Biel, CH"]
[Date "2026.07.19"]
[Round "1"]
[White "Amsellem, Daniel"]
[Black "Filipovic, Branko"]
[Result "1/2-1/2"]
[Board "38"]
[TimeControl "180+2"]
[WhiteFideId "1363522"]
[BlackFideId "14507951"]
[WhiteElo "1723"]
[BlackElo "2109"]
[BlackTitle "IM"]
[WhiteClock "0:00:28"]
[BlackClock "0:01:01"]
[Variant "Standard"]
[EndDate "2026.07.19"]
[EndTime "11:47:32"]

1. c4 {[%clk 0:03:02]}  b6 {[%clk 0:03:03]} 2. Nf3 {[%clk 0:03:01]}  Bb7 {[%clk 0:03:04]} 3. g3 {[%clk 0:03:02]}  Nf6 {[%clk 0:03:05]}
4. Bg2 {[%clk 0:03:02]}  g6 {[%clk 0:03:06]} 5. O-O {[%clk 0:03:02]}  Bg7 {[%clk 0:03:08]} 6. Nc3 {[%clk 0:03:01]}  O-O {[%clk 0:03:07]}
7. d3 {[%clk 0:03:01]}  c5 {[%clk 0:03:05]} 8. Bd2 {[%clk 0:02:57]}  Nc6 {[%clk 0:03:03]} 9. Rb1 {[%clk 0:02:53]}  d5 {[%clk 0:02:58]}
10. cxd5 {[%clk 0:02:53]}  Nxd5 {[%clk 0:02:58]} 11. a3 {[%clk 0:02:51]}  e6 {[%clk 0:02:44]} 12. Qc2 {[%clk 0:02:51]}  Rc8 {[%clk 0:02:45]}
13. Nxd5 {[%clk 0:02:49]}  Qxd5 {[%clk 0:02:38]} 14. Bc3 {[%clk 0:02:38]}  Nd4 {[%clk 0:02:20]} 15. Bxd4 {[%clk 0:02:16]}  cxd4 {[%clk 0:02:18]}
16. Qd2 {[%clk 0:02:09]}  Qb3 {[%clk 0:02:12]} 17. Rfc1 {[%clk 0:01:51]}  h6 {[%clk 0:02:07]} 18. Nxd4 {[%clk 0:01:35]}  Rxc1+ {[%clk 0:02:04]}
19. Rxc1 {[%clk 0:01:34]}  Bxd4 {[%clk 0:02:04]} 20. Bxb7 {[%clk 0:01:33]}  Qxb2 {[%clk 0:02:02]} 21. Qxb2 {[%clk 0:01:29]}  Bxb2 {[%clk 0:02:03]}
22. Rc7 {[%clk 0:01:23]}  Bxa3 {[%clk 0:02:03]} 23. Ba6 {[%clk 0:01:06]}  Ra8 {[%clk 0:01:52]} 24. Bb7 {[%clk 0:01:06]}  Rb8 {[%clk 0:01:52]}
25. Ba6 {[%clk 0:01:05]}  b5 {[%clk 0:01:52]} 26. Rxa7 {[%clk 0:01:01]}  Bf8 {[%clk 0:01:47]} 27. Rb7 {[%clk 0:01:00]}  Rxb7 {[%clk 0:01:48]}
28. Bxb7 {[%clk 0:01:00]}  b4 {[%clk 0:01:49]} 29. Be4 {[%clk 0:00:55]}  f5 {[%clk 0:01:46]} 30. Bc6 {[%clk 0:00:51]}  b3 {[%clk 0:01:46]}
31. Ba4 {[%clk 0:00:51]}  b2 {[%clk 0:01:47]} 32. Bc2 {[%clk 0:00:51]}  Bb4 {[%clk 0:01:41]} 33. Kf1 {[%clk 0:00:50]}  e5 {[%clk 0:01:43]}
34. e3 {[%clk 0:00:50]}  Bc3 {[%clk 0:01:45]} 35. Ke2 {[%clk 0:00:50]}  Kf7 {[%clk 0:01:45]} 36. Bb1 {[%clk 0:00:50]}  Ke6 {[%clk 0:01:43]}
37. Kd1 {[%clk 0:00:51]}  Kd5 {[%clk 0:01:40]} 38. Kc2 {[%clk 0:00:52]}  Be1 {[%clk 0:01:41]} 39. f3 {[%clk 0:00:50]}  Bf2 {[%clk 0:01:39]}
40. e4+ {[%clk 0:00:50]}  Kd4 {[%clk 0:01:38]} 41. Kxb2 {[%clk 0:00:49]}  Bg1 {[%clk 0:01:14]} 42. exf5 {[%clk 0:00:37]}  gxf5 {[%clk 0:01:15]}
43. Kc2 {[%clk 0:00:32]}  Bxh2 {[%clk 0:01:15]} 44. g4 {[%clk 0:00:33]}  fxg4 {[%clk 0:01:00]} 45. fxg4 {[%clk 0:00:33]}  Ke3 {[%clk 0:01:01]}
46. Kd1 {[%clk 0:00:30]}  Kf4 {[%clk 0:01:02]} 47. Ke2 {[%clk 0:00:30]}  Kxg4 {[%clk 0:01:03]} 48. Kf2 {[%clk 0:00:31]}  h5 {[%clk 0:01:00]}
49. Kg2 {[%clk 0:00:31]}  Bf4 {[%clk 0:01:01]} 50. Bc2 {[%clk 0:00:32]}  h4 {[%clk 0:00:57]} 51. Bd1+ {[%clk 0:00:31]}  Kf5 {[%clk 0:00:58]}
52. Bf3 {[%clk 0:00:31]}  Bg3 {[%clk 0:00:59]} 53. Be4+ {[%clk 0:00:32]}  Kf4 {[%clk 0:01:00]} 54. Bh7 {[%clk 0:00:31]}  Kg4 {[%clk 0:01:01]}
55. Be4 {[%clk 0:00:29]}  h3+ {[%clk 0:01:02]} 56. Kh1 {[%clk 0:00:30]}  Kf4 {[%clk 0:01:01]} 57. Bg6 {[%clk 0:00:29]}  Ke3 {[%clk 0:01:01]}
58. Be4 {[%clk 0:00:29]}  Kf2 {[%clk 0:01:01]} 59. Bd5 {[%clk 0:00:28]} 1/2-1/2